Cogmind - Beta 14 @@@ ROGUE MODE // 2024.10.27 @ 09:27:15 Player: canerib Result: Destroyed by D-53 Grenadier with Mini Grenade Launcher Performance ------------- Evolutions (1) 500 Regions Visited (3) 600 Robots Destroyed (37) 185 Value Destroyed (699) 699 Prototype IDs (2) 40 Alien Tech Used (0) 0 Bonus (8) 8 TOTAL SCORE: 2032 Bonus ------- High Alert Combat Kills 8 Cogmind --------- Core Integrity 0/400 Matter 285/300 Energy 62/100 System Corruption 0% Temperature Cool (0) Movement Core (50) Location -9/Mines Parts ------- > --- POWER (1) -------- (None) > --- PROPULSION (4) --- (None) > --- UTILITY (2) ------ Visual Processing Unit > --- WEAPON (2) ------- Small Laser > --- INVENTORY (5) ---- Ion Engine Light Ion Engine Improved Terrain Scanner Light Assault Rifle Mining Laser Peak State ------------ > --- POWER ------------ Improved Ion Engine > --- PROPULSION ------- Wheel Wheel Wheel Wheel > --- UTILITY ---------- Cooling System Large Storage Unit > --- WEAPON ----------- Medium Laser Medium Laser > --- INVENTORY -------- Ion Engine Light Ion Engine Light Ion Engine Aluminum Leg Visual Processing Unit Improved Terrain Scanner Light Armor Plating Small Laser Light Assault Rifle Mining Laser [Rating: 12] Favorites ----------- Power Ion Engine Engine Ion Engine Propulsion Wheel Leg Aluminum Leg Wheel Wheel Utility Large Storage Unit Device Cooling System Storage Large Storage Unit Processor Visual Processing Unit Protection Light Armor Plating Weapon Medium Laser Energy Gun Medium Laser Ballistic Gun Light Assault Rifle Special Weapon Mining Laser Build | -11 -10 -9 -9 ------- Run | Yrd Mat Mat Min Slots Evolved 2 | . . 2 . Power . | . . . . Propulsion 2 | . . 2 . Utility . | . . . . Weapon . | . . . . Parts Attached 39 | 7 11 11 10 Power 7 | 1 3 1 2 Engine 7 | 1 3 1 2 Core . | . . . . Reactor . | . . . . Propulsion 15 | 2 3 7 3 Treads . | . . . . Leg 9 | . 1 5 3 Wheel 6 | 2 2 2 . Hover . | . . . . Flight . | . . . . Utility 7 | 2 2 . 3 Device 3 | 1 1 . 1 Storage 2 | 1 1 . . Processor 1 | . . . 1 Hackware . | . . . . Protection 1 | . . . 1 Artifact . | . . . . Weapon 10 | 2 3 3 2 Energy Gun 8 | 2 2 2 2 Energy Cannon . | . . . . Ballistic Gun 1 | . . 1 . Ballistic Cannon . | . . . . Launcher . | . . . . Special Weapon 1 | . 1 . . Impact Weapon . | . . . . Slashing Weapon . | . . . . Piercing Weapon . | . . . . Special Melee Weapon . | . . . . Unidentified Prototypes . | . . . . Parts Lost 18 | . 2 4 12 Power 2 | . . . 2 Propulsion 9 | . 1 2 6 Utility 2 | . . . 2 Weapon 5 | . 1 2 2 Highest Loss Streak 6 | . 2 4 6 To Critical Strikes . | . . . . Average Slot Usage (%) 94 | . 95 96 87 Engine 13 | . 14 11 10 Leg 10 | . 3 23 35 Wheel 17 | . 20 18 . Device 12 | . 14 11 3 Storage 13 | . 14 11 10 Energy Gun 23 | . 27 13 15 Ballistic Gun 1 | . . 7 4 Peak Build Rating 12 | 7 9 12 12 Average Rating 8 | 6 7 11 10 On Entrance 7 | . 7 9 12 Naked Turns . | . . . . Heaviest Build 33 | 15 31 33 32 Greatest Support 40 | 26 26 40 40 Greatest Overweight (x) 3 | . 3 1 1 Average Overweight (x) . | . . . . Largest Inventory Capacity 15 | 8 15 15 15 Average Capacity 12 | 7 12 15 14 Most Carried 12 | 4 12 11 11 Average Carried 6 | 2 6 10 8 Final Capacity 15 | 8 15 15 5 Final Carried 12 | 4 12 11 5 Class Distribution -------------------- 74% | Mutant 25% | Scavenger-Mutant Dominant Class ---------------- Mutant | -10/Materials Scavenger-Mutant | -9/Materials Scavenger-Mutant | -9/Mines Resources | -11 -10 -9 -9 ----------- Run | Yrd Mat Mat Min Matter Collected 563 | 270 120 112 61 Remotely . | . . . . Salvage Created 1231 | 99 816 245 71 Parts 82 | 13 52 17 . Haulers Intercepted 1 | . 1 . . Recyclers Shooed 3 | . 3 . . Parts Field Recycled . | . . . . Retrieved Matter . | . . . . Parts Self-Destructed . | . . . . Prevented . | . . . . Kills | -11 -10 -9 -9 ------- Run | Yrd Mat Mat Min Combat Hostiles Destroyed 26 | . 15 5 6 Guns 24 | . 13 5 6 Classes Destroyed 10 | 1 7 1 1 Worker 6 | . 6 . . Builder 1 | . 1 . . Tunneler 5 | 5 . . . Hauler 1 | . 1 . . Recycler 1 | . 1 . . Watcher 3 | . 3 . . Swarmer 6 | . 6 . . Grunt 12 | . 9 3 . Sentry 2 | . . 2 . Assembled 6 | . . . 6 Best Kill Streak 6 | 2 6 4 3 Combat Bots Only 6 | . 6 4 3 Max Kills in Single Turn 1 | 1 1 1 1 Gunslinging . | . . . . Exploded . | . . . . Melee . | . . . . Uniques/NPCs Destroyed . | . . . . Combat | -11 -10 -9 -9 -------- Run | Yrd Mat Mat Min Hostile Shots Fired 193 | . 61 46 86 Missed 53 | . 13 11 29 Damage Taken 2203 | . 563 468 1172 Core 620 | . 209 83 328 Absorbed by Shields . | . . . . Core Remaining (%) 58 | 100 16 . . Volleys Fired 130 | 16 74 20 20 Largest 2 | 2 2 2 2 Hottest 105 | 100 100 100 105 Shots Fired 244 | 32 142 30 40 Gun 240 | 32 138 30 40 Cannon . | . . . . Launcher . | . . . . Special 4 | . 4 . . Kinetic 17 | . . 12 5 Thermal 227 | 32 142 18 35 Explosive . | . . . . Electromagnetic . | . . . . Robot Hit Streak 14 | 11 7 14 3 Robot Miss Streak 4 | 4 4 1 4 Penetration Max . | . . . . Secondary Targets 2 | . 1 . 1 Max Gunslinging Chain 1 | . 1 . 1 Shots Hit Robots 153 | 20 82 26 25 Core Hits 70 | 5 40 13 12 Critical Kills . | . . . . Critical Parts Destroyed 2 | . . 1 1 Critical Strikes 13 | 1 8 2 2 Burn 11 | 1 8 1 1 Destroy 2 | . . 1 1 Melee Attacks . | . . . . Impact . | . . . . Slashing . | . . . . Piercing . | . . . . Sneak Attacks . | . . . . Combat Hostiles . | . . . . Follow-up Attacks . | . . . . Damage Inflicted 1905 | 274 1055 275 301 Guns 1905 | 274 1055 275 301 Cannons . | . . . . Explosions . | . . . . Melee . | . . . . Ramming . | . . . . Kinetic 116 | . . 88 28 Thermal 1789 | 274 1055 187 273 Explosive . | . . . . Electromagnetic . | . . . . Impact . | . . . . Slashing . | . . . . Piercing . | . . . . Highest Corruption 2 | . 2 . . Average Corruption 2 | . 2 . . Corruption Purged . | . . . . Corruption Blocked . | . . . . Effects 1 | . 1 . . Matter Fused 1 | . 1 . . Overload Shots . | . . . . Overflow Damage . | . . . . Projectiles . | . . . . Explosions . | . . . . Melee . | . . . . Knockbacks . | . . . . Impact . | . . . . Kinetic . | . . . . Secondary . | . . . . Self-Inflicted Damage . | . . . . Shots . | . . . . Rammed . | . . . . Targets Rammed . | . . . . Kicked . | . . . . Crushed . | . . . . Highest Temperature 407 | 234 407 13 286 Average Temperature 92 | 75 97 5 107 Received Heat Transfer 447 | . 195 252 . Siege Activations . | . . . . Robots Corrupted . | . . . . Combat Hostiles . | . . . . Parts Fried . | . . . . Impact Corruptions . | . . . . Robots Melted 2 | . 2 . . Combat Hostiles 2 | . 2 . . Parts Melted 17 | 1 16 . . Heat Transferred 5912 | 888 3700 629 695 Parts Sabotaged . | . . . . Parts Stolen . | . . . . Parts Stripped . | . . . . Power Chain Reactions . | . . . . Alert | -11 -10 -9 -9 ------- Run | Yrd Mat Mat Min Peak Influence 424 | 25 424 246 95 Initial 126 | . 16 126 95 Average 183 | 11 224 203 61 Maximum Alert Level 2 | . 2 1 . Low Security (%) 51 | 100 38 46 100 Level 1 39 | . 48 53 . Level 2 8 | . 12 . . Level 3 . | . . . . Level 4 . | . . . . Level 5 . | . . . . High Security . | . . . . Max Security . | . . . . Squads Dispatched 5 | . 4 1 . Investigation 1 | . 1 . . Extermination . | . . . . Reinforcement 4 | . 3 1 . Assault . | . . . . Garrison . | . . . . Intercept . | . . . . Searches Triggered . | . . . . Construction Impeded . | . . . . Haulers Reinforced . | . . . . Active Scanning Responses . | . . . . Cargo Convoy Interrupts . | . . . . Stealth | -11 -10 -9 -9 --------- Run | Yrd Mat Mat Min Distress Signals 1 | . 1 . . Communications Jammed . | . . . . Distress Signals . | . . . . Times Spotted 56 | . 29 7 20 Peak Tracking Total 13 | . 5 5 13 Tactical Retreats 6 | . 3 . 3 Traps | -11 -10 -9 -9 ------- Run | Yrd Mat Mat Min Traps Triggered 2 | . 2 . . Indirectly . | . . . . Trap Hack Attempts . | . . . . Triggered . | . . . . Disarmed 10 | . 10 . . Reprogrammed . | . . . . Reused . | . . . . Traps Extracted . | . . . . Installed . | . . . . Triggered . | . . . . Machines | -11 -10 -9 -9 ---------- Run | Yrd Mat Mat Min Machines Disabled . | . . . . Max in Single Turn . | . . . . Machines Repaired . | . . . . Machines Dismantled . | . . . . Machines Sabotaged . | . . . . Overloaded Fab Kills . | . . . . Hacking | -11 -10 -9 -9 --------- Run | Yrd Mat Mat Min Machines Accessed 6 | . 6 . . Terminals 5 | . 5 . . Fabricators . | . . . . Repair Stations 1 | . 1 . . Recycling Units . | . . . . Scanalyzers . | . . . . Garrison Access . | . . . . Total Hacks 23 | . 23 . . Successful 15 | . 15 . . Failed 8 | . 8 . . Catastrophic 2 | . 2 . . Database Lockouts . | . . . . Manual 6 | . 6 . . Terminals 20 | . 20 . . Fabricators . | . . . . Repair Stations 3 | . 3 . . Recycling Units . | . . . . Scanalyzers . | . . . . Garrison Access . | . . . . Terminal Hacks 11 | . 11 . . Prototype ID Bank 1 | . 1 . . Level Access Points 1 | . 1 . . Locate Traps 2 | . 2 . . Disarm Traps 2 | . 2 . . Hauler Manifests 1 | . 1 . . Registered Components 1 | . 1 . . Zone Layout 3 | . 3 . . Fabricator Hacks . | . . . . Repair Station Hacks 1 | . 1 . . Scan Component 1 | . 1 . . Recycling Unit Hacks . | . . . . Scanalyzer . | . . . . Garrison Access Hacks . | . . . . Unauthorized Hacks 3 | . 3 . . Terminals 3 | . 3 . . Botnet 3 | . 3 . . Fabricators . | . . . . Repair Stations . | . . . . Recycling Units . | . . . . Scanalyzers . | . . . . Garrison Access . | . . . . Data Cores Recovered . | . . . . Used . | . . . . Hacking Detections 6 | . 6 . . Full Trace Events 1 | . 1 . . Feedback Events . | . . . . Feedback Blocked . | . . . . Robot Schematics Acquired . | . . . . Robots Built . | . . . . Authchips . | . . . . Time . | . . . . Total Robot Build Rating . | . . . . Part Schematics Acquired . | . . . . Parts Built . | . . . . Authchips . | . . . . Time . | . . . . Total Part Build Rating . | . . . . Parts Repaired . | . . . . Time . | . . . . Parts Recycled . | . . . . Recycled Matter . | . . . . Retrieved Matter . | . . . . Retrieved Components . | . . . . Parts Scanalyzed . | . . . . Part Schematics Acquired . | . . . . Parts Damaged . | . . . . Bothacking | -11 -10 -9 -9 ------------ Run | Yrd Mat Mat Min Used RIF Installer . | . . . . Robots Hacked . | . . . . Non-combat . | . . . . Combat . | . . . . Robot Hacks Applied . | . . . . Relay Couplers Released . | . . . . Fabnet Peak Effective % . | . . . . Robots Rewired . | . . . . Allies Hacked . | . . . . Hacks Repelled . | . . . . Allies | -11 -10 -9 -9 -------- Run | Yrd Mat Mat Min Total Allies . | . . . . Largest Group . | . . . . Highest-Rated Group . | . . . . Highest-Rated Ally . | . . . . Total Orders . | . . . . Ally Attacks . | . . . . Total Damage . | . . . . Kills . | . . . . Allies Corrupted . | . . . . Allies Melted . | . . . . Intel | -11 -10 -9 -9 ------- Run | Yrd Mat Mat Min Robot Analysis Total . | . . . . Derelict Logs Recovered . | . . . . Drone Launches . | . . . . Drone Recoveries . | . . . . Exploration | -11 -10 -9 -9 ------------- Run | Yrd Mat Mat Min Turns Passed 1669 | 175 1056 284 154 Spaces Moved 996 | 107 620 201 68 Core 11 | 8 . . 3 Treads . | . . . . Legs 253 | . 79 109 65 Wheels 732 | 99 541 92 . Hover . | . . . . Flight . | . . . . Fastest Speed 50 | 50 90 80 50 Average Speed 113 | 87 121 102 120 Slowest Speed 330 | 90 330 120 190 Overloaded Moves . | . . . . Propulsion Burnouts . | . . . . Robots Hopped . | . . . . Cave-ins Triggered . | . . . . Exploration Rate (%) 33 | 5 86 16 26 Regions Visited 3 Branch Regions 1 Pre-discovered Areas . | . . . . Known Exits Taken 1 | . 1 . . Unknown Exits Taken 2 | 1 . 1 . Scrap Searched . | . . . . Spaces Dug 4 | . 4 . . Terrain Destroyed 4 | . 4 . . Melee . | . . . . Projectile 4 | . 4 . . AOE . | . . . . Terrain Rammed . | . . . . Walls Destroyed . | . . . . Machines Disabled . | . . . . Actions | -11 -10 -9 -9 --------- Run | Yrd Mat Mat Min Total 1280 | 157 771 251 101 Wait 65 | 15 43 7 . Move 993 | 106 619 200 68 Hop . | . . . . Pick Up 39 | 12 17 9 1 Fast Attach . | . . . . Attach 23 | 7 3 6 7 Detach . | . . . . Swap 16 | . 8 5 3 Drop 14 | 1 7 4 2 Fire 130 | 16 74 20 20 Melee . | . . . . Ram . | . . . . Kick . | . . . . Crush . | . . . . Escape Stasis . | . . . . Rewire . | . . . . Trap . | . . . . Miscellaneous . | . . . . Route ------- -11/Scrapyard -10/Materials (discovered 5 exits: *Mat x3 / [*Min x2]) -9/Materials -9/Mines History --------- Turn | Location | Event 13 | -11/Scrapyard | Discovered new exit (range 16) 176 | -11/Scrapyard | Entered Materials 242 | -10/Materials | Discovered new exit (range 9) 310 | -10/Materials | Build established: Mutant 507 | -10/Materials | Identified exit to Materials 786 | -10/Materials | Core integrity fell below 50% 813 | -10/Materials | Discovered new exit (range 16) 836 | -10/Materials | Core integrity fell below 20% 1232 | -10/Materials | Entered another Materials area 1232 | -9/Materials | Evolved 2 slots: Propulsion x2 1310 | -9/Materials | Discovered new exit (range 7) 1376 | -9/Materials | Lost 4 parts (2n2w) 1516 | -9/Materials | Entered Mines 1517 | -9/Mines | Assembled infested the area 1522 | -9/Mines | Assisted by a Guerilla fighting off Assembled 1540 | -9/Mines | Build established: Scavenger-Mutant 1651 | -9/Mines | Lost 6 parts (1p3n1u1w) 1660 | -9/Mines | Core integrity fell below 50% 1664 | -9/Mines | Core integrity fell below 20% 1668 | -9/Mines | Found the Drone Emporium 1670 | -9/Mines | Destroyed by D-53 Grenadier with Mini Grenade Launcher Last Messages --------------- 01657_ Cooling System destroyed. 01659_ Aluminum Leg destroyed. 01663_ Lgt. Ion Engine destroyed. 01665_ Aluminum Leg destroyed. 01665_ Particle Gun destroyed. 01666_ Dropped Aluminum Leg. 01667_ Acquired Aluminum Leg. 01667_ D-53 Grenadier suffers critical hit (Burn). 01668_ IA-WQ3(g): "Well that was anticlimactic. Heard you outside and thought you were from the Merchants Guild. I haven't even officially opened my Drone Emporium yet but am totally ready to tell them where they can shove that C&D." 01668_ The unstable cave ceiling collapses. 01669_ Dropped Lrg. Storage Unit. 01669_ Aluminum Leg destroyed. 01670_ IA-WQ3(g): "I'm a fan of the free market. Free drones for all! No strings attached!" Map ----- +----------------------------------------------------+ | | | | | | | ????????????????????????????????? | | ????????????????????????????????? | | ????????????????????????????????? | | ????????????????????????????????? | | ????????????????????????????????? | | ????????????????????????????????? | | ????????????????????????????????? | | ????????????????????????????????? | | ????????????????????????????????? | | ????????????????????????????????? | | ????????????????????????????????? | | ????????????????????????????????? | | ????????????????????????????????? | | ????????????????????????????????? | | ?????########???????????????????? | | ?????# #???????????????????? | | ?????# #####???????????????? | | ?????#X #???????????????? | | ?????" ##??????????????? | | #"!??" #??????????????? | | ?? # #??????????????? | | ????#g ##?????????????? | | ????# @ ! #?????????????? | | ????# #?????????????? | | ????# #?????????????? | | ????### #?????????????? | | ??????### #?????????????? | | ????????## #?????????????? | | ?????????## d #?????????????? | | ??????????## d ####???????????? | | ???????????? #???????????? | | ???????????? # #???????????? | | ????????????## # #??????????? | | ??????????????# ## #?????????? | | ??????????????# ## % #?????????? | | ??????????##### # #?????????? | | ??????????# ## ##?????????? | | ??????????# ####### ##??????????? | | ??????????#%#????? ???????????? | | ??????????# ##???? ???????????? | | ?????????## ##??? ???????????? | | ?????????# #??? ???????????? | | ???##???## #??? ???????????? | | ??## ### ##?? ???????????? | | ?## ### % ???? ???? | | ?# # # ??? | | ?# ??? | +----------------------------------------------------+ Best States ------------- Heat Dissipation 50 Energy Generation 12 Energy Capacity 265 Matter Stores 300 Matter Capacity 300 Sight Range 18 Terrain Scan Density 10 Armor Coverage 150 Evasion (%) 55 Item Schematics ----------------- None Robot Schematics ------------------ None Fabricated ------------ Nothing Alien Tech Used ----------------- None Achievements -------------- None Challenges ------------ None Game ------ Seed HoverAerolevExpander Manual? 0 Play Time 00:20:26 Cumulative 45.8 hours Start 2024.10.26 @ 21:00:38 End 2024.10.27 @ 09:27:15 Sessions 2 Manual Loads 0 Difficulty Rogue Special Mode None Game No. 62 Rogue 62 Adventurer 0 Explorer 0 Win Type - Total 1 Types 1/0/0/0/0/0/0/0/0 Lore% 24 Gallery% 38 Achievement% 35 Wizard Run 0 Options --------- Layout 1 ASCII 1 Keyboard 0 Movement Mouse Keybinds 0 Fullscreen 1 Font 24/Smallcaps Map View 50x35 Zoom Use 0% Tactical HUD 1 Map Filters NONE Filters NONE Steam 1 RUN: 3f2bcdd4-9cc9-4893-a0ca-c08fa922ea09